[Event "Titled Tuesday Blitz August 3 2021"]
[White "Vasquez Schroeder, Rodrigo"]
[Black "Ambartsumova, Karina"]
[WhiteFideId "3400042"]
[BlackFideId "4166299"]
[WhiteElo "2572"]
[BlackElo "2262"]
[Result "0-1"]
[Round "07"]
[TimeControl "180+1"]
[Date "2021.08.03"]
[WhiteClock "0:00:02"]
[BlackClock "0:00:06"]

1. e4 {[%clk 0:03:00]}  c5 {[%clk 0:02:55]} 2. Nf3 {[%clk 0:02:57]}  e6 {[%clk 0:02:54]} 3. d4 {[%clk 0:02:57]}  cxd4 {[%clk 0:02:55]} 4. Nxd4 {[%clk 0:02:58]}  a6 {[%clk 0:02:55]} 5. Bd3 {[%clk 0:02:58]}  Bc5 {[%clk 0:02:55]} 6. Nb3 {[%clk 0:02:57]}  Ba7 {[%clk 0:02:55]} 7. Qe2 {[%clk 0:02:55]}  d6 {[%clk 0:02:52]} 8. Be3 {[%clk 0:02:55]}  Bxe3 {[%clk 0:02:52]} 9. Qxe3 {[%clk 0:02:55]}  Ne7 {[%clk 0:02:53]} 10. c4 {[%clk 0:02:54]}  e5 {[%clk 0:02:37]} 11. Nc3 {[%clk 0:02:54]}  Be6 {[%clk 0:02:37]} 12. O-O {[%clk 0:02:51]}  Nd7 {[%clk 0:02:36]} 13. Rfd1 {[%clk 0:02:49]}  Qb6 {[%clk 0:02:34]} 14. Qe2 {[%clk 0:02:44]}  Rc8 {[%clk 0:02:24]} 15. Rab1 {[%clk 0:02:32]}  O-O {[%clk 0:02:17]} 16. Nd2 {[%clk 0:02:32]}  Nc6 {[%clk 0:02:08]} 17. h3 {[%clk 0:02:26]}  Nd4 {[%clk 0:02:02]} 18. Qe3 {[%clk 0:02:26]}  Rfd8 {[%clk 0:01:47]} 19. b3 {[%clk 0:02:19]}  Qa5 {[%clk 0:01:44]} 20. Bf1 {[%clk 0:02:10]}  b5 {[%clk 0:01:39]} 21. Rdc1 {[%clk 0:01:43]}  b4 {[%clk 0:01:34]} 22. Nd1 {[%clk 0:01:35]}  Nc5 {[%clk 0:01:24]} 23. Ra1 {[%clk 0:01:34]}  Bd7 {[%clk 0:01:09]} 24. f4 {[%clk 0:01:28]}  Bc6 {[%clk 0:01:01]} 25. f5 {[%clk 0:01:28]}  f6 {[%clk 0:00:58]} 26. Kh2 {[%clk 0:01:11]}  Qc7 {[%clk 0:00:58]} 27. g4 {[%clk 0:01:07]}  h6 {[%clk 0:00:53]} 28. Bg2 {[%clk 0:01:08]}  Qb7 {[%clk 0:00:52]} 29. Nf2 {[%clk 0:01:06]}  a5 {[%clk 0:00:50]} 30. h4 {[%clk 0:01:05]}  Kf7 {[%clk 0:00:42]} 31. Kg3 {[%clk 0:01:02]}  Ke7 {[%clk 0:00:41]} 32. a3 {[%clk 0:00:50]}  Kd7 {[%clk 0:00:32]} 33. a4 {[%clk 0:00:46]}  Kc7 {[%clk 0:00:32]} 34. Ra2 {[%clk 0:00:43]}  Kb8 {[%clk 0:00:31]} 35. Rb2 {[%clk 0:00:43]}  Rg8 {[%clk 0:00:30]} 36. h5 {[%clk 0:00:42]}  Rgd8 {[%clk 0:00:25]} 37. Re1 {[%clk 0:00:42]}  Re8 {[%clk 0:00:23]} 38. Nh3 {[%clk 0:00:41]}  Re7 {[%clk 0:00:23]} 39. Ng1 {[%clk 0:00:40]}  Rec7 {[%clk 0:00:20]} 40. Ngf3 {[%clk 0:00:40]}  Nxf3 {[%clk 0:00:18]} 41. Bxf3 {[%clk 0:00:40]}  Rd8 {[%clk 0:00:18]} 42. Nf1 {[%clk 0:00:39]}  Rcd7 {[%clk 0:00:18]} 43. Qe2 {[%clk 0:00:36]}  Qa7 {[%clk 0:00:18]} 44. Nd2 {[%clk 0:00:33]}  Nb7 {[%clk 0:00:18]} 45. Rbb1 {[%clk 0:00:34]}  Nc5 {[%clk 0:00:19]} 46. Red1 {[%clk 0:00:33]}  Nb7 {[%clk 0:00:19]} 47. Nf1 {[%clk 0:00:33]}  Nc5 {[%clk 0:00:19]} 48. Rd2 {[%clk 0:00:32]}  Qb6 {[%clk 0:00:19]} 49. Ne3 {[%clk 0:00:32]}  Nb7 {[%clk 0:00:19]} 50. Nf1 {[%clk 0:00:27]}  Nc5 {[%clk 0:00:19]} 51. Kg2 {[%clk 0:00:27]}  Qb7 {[%clk 0:00:19]} 52. Ng3 {[%clk 0:00:27]}  Qa8 {[%clk 0:00:17]} 53. Qe3 {[%clk 0:00:27]}  Qb7 {[%clk 0:00:17]} 54. Kf2 {[%clk 0:00:27]}  Qa7 {[%clk 0:00:17]} 55. Ke2 {[%clk 0:00:27]}  Qb7 {[%clk 0:00:15]} 56. Rdd1 {[%clk 0:00:28]}  Qa8 {[%clk 0:00:14]} 57. Kf2 {[%clk 0:00:28]}  Qb7 {[%clk 0:00:14]} 58. Re1 {[%clk 0:00:27]}  Qa8 {[%clk 0:00:15]} 59. Red1 {[%clk 0:00:25]}  Qb7 {[%clk 0:00:15]} 60. Rd2 {[%clk 0:00:26]}  Qa8 {[%clk 0:00:16]} 61. Rbd1 {[%clk 0:00:26]}  Qb7 {[%clk 0:00:16]} 62. Qe2 {[%clk 0:00:25]}  Nxb3 {[%clk 0:00:14]} 63. Ra2 {[%clk 0:00:23]}  Nd4 {[%clk 0:00:14]} 64. Qe3 {[%clk 0:00:23]}  Qa7 {[%clk 0:00:13]} 65. Ne2 {[%clk 0:00:22]}  Nxe2 {[%clk 0:00:12]} 66. Kxe2 {[%clk 0:00:22]}  Qxe3+ {[%clk 0:00:11]} 67. Kxe3 {[%clk 0:00:22]}  Rb7 {[%clk 0:00:11]} 68. Rd3 {[%clk 0:00:20]}  b3 {[%clk 0:00:09]} 69. Rb2 {[%clk 0:00:19]}  Bxa4 {[%clk 0:00:09]} 70. Bd1 {[%clk 0:00:19]}  Kc7 {[%clk 0:00:07]} 71. Kd2 {[%clk 0:00:19]}  Rdb8 {[%clk 0:00:07]} 72. Kc3 {[%clk 0:00:20]}  Bc6 {[%clk 0:00:08]} 73. Rxb3 {[%clk 0:00:18]}  Bxe4 {[%clk 0:00:08]} 74. Rxb7+ {[%clk 0:00:17]}  Rxb7 {[%clk 0:00:08]} 75. Rd2 {[%clk 0:00:18]}  Bc6 {[%clk 0:00:08]} 76. Ra2 {[%clk 0:00:17]}  Ra7 {[%clk 0:00:08]} 77. Ba4 {[%clk 0:00:14]}  Bxa4 {[%clk 0:00:08]} 78. Rxa4 {[%clk 0:00:15]}  Kc6 {[%clk 0:00:09]} 79. Ra3 {[%clk 0:00:16]}  a4 {[%clk 0:00:08]} 80. Kb4 {[%clk 0:00:16]}  d5 {[%clk 0:00:08]} 81. cxd5+ {[%clk 0:00:16]}  Kxd5 {[%clk 0:00:09]} 82. Kb5 {[%clk 0:00:12]}  e4 {[%clk 0:00:09]} 83. Kb6 {[%clk 0:00:12]}  Ra8 {[%clk 0:00:09]} 84. Kb7 {[%clk 0:00:13]}  Ra5 {[%clk 0:00:08]} 85. Kb6 {[%clk 0:00:13]}  Rc5 {[%clk 0:00:08]} 86. Rxa4 {[%clk 0:00:13]}  Rc1 {[%clk 0:00:07]} 87. Ra7 {[%clk 0:00:05]}  Rb1+ {[%clk 0:00:07]} 88. Kc7 {[%clk 0:00:05]}  e3 {[%clk 0:00:07]} 89. Ra2 {[%clk 0:00:02]}  Ke4 {[%clk 0:00:06]} 0-1


[Site "https://www.chess.com"]

[Event "Titled Tuesday Blitz August 3 2021"]
[White "Wyde, David"]
[Black "Csonka, Balazs"]
[WhiteFideId "2028107"]
[BlackFideId "742910"]
[WhiteElo "2400"]
[BlackElo "2404"]
[Result "0-1"]
[Round "07"]
[TimeControl "180+1"]
[Date "2021.08.03"]
[WhiteClock "0:00:16"]
[BlackClock "0:00:07"]

1. d4 {[%clk 0:03:00]}  Nf6 {[%clk 0:02:59]} 2. c4 {[%clk 0:03:00]}  g6 {[%clk 0:02:59]} 3. Nc3 {[%clk 0:03:00]}  Bg7 {[%clk 0:03:00]} 4. e4 {[%clk 0:02:59]}  O-O {[%clk 0:03:01]} 5. Nf3 {[%clk 0:02:59]}  d6 {[%clk 0:03:01]} 6. Be2 {[%clk 0:02:59]}  Bg4 {[%clk 0:03:00]} 7. O-O {[%clk 0:02:53]}  Nfd7 {[%clk 0:02:57]} 8. d5 {[%clk 0:02:43]}  a5 {[%clk 0:02:45]} 9. h3 {[%clk 0:02:35]}  Bxf3 {[%clk 0:02:45]} 10. Bxf3 {[%clk 0:02:36]}  Na6 {[%clk 0:02:41]} 11. Re1 {[%clk 0:02:32]}  Nac5 {[%clk 0:02:41]} 12. Be3 {[%clk 0:02:27]}  c6 {[%clk 0:02:38]} 13. Bd4 {[%clk 0:02:24]}  Bxd4 {[%clk 0:02:12]} 14. Qxd4 {[%clk 0:02:23]}  Qb6 {[%clk 0:02:12]} 15. Rab1 {[%clk 0:02:11]}  a4 {[%clk 0:02:01]} 16. Be2 {[%clk 0:02:02]}  Rfd8 {[%clk 0:01:40]} 17. Bf1 {[%clk 0:02:00]}  a3 {[%clk 0:01:26]} 18. b4 {[%clk 0:01:50]}  Na4 {[%clk 0:01:25]} 19. Qxb6 {[%clk 0:01:47]}  Ndxb6 {[%clk 0:01:21]} 20. Nxa4 {[%clk 0:01:36]}  Nxa4 {[%clk 0:01:21]} 21. Rb3 {[%clk 0:01:29]}  c5 {[%clk 0:01:12]} 22. b5 {[%clk 0:01:13]}  Nb6 {[%clk 0:01:12]} 23. Ree3 {[%clk 0:01:12]}  Ra4 {[%clk 0:01:09]} 24. Rec3 {[%clk 0:01:04]}  e5 {[%clk 0:01:06]} 25. Bd3 {[%clk 0:00:59]}  Kg7 {[%clk 0:01:04]} 26. Kf1 {[%clk 0:00:59]}  h5 {[%clk 0:00:57]} 27. Ke2 {[%clk 0:00:59]}  Kh6 {[%clk 0:00:57]} 28. g3 {[%clk 0:00:56]}  h4 {[%clk 0:00:56]} 29. Kd2 {[%clk 0:00:53]}  Kg5 {[%clk 0:00:53]} 30. Kc2 {[%clk 0:00:53]}  Rda8 {[%clk 0:00:52]} 31. Bf1 {[%clk 0:00:50]}  f5 {[%clk 0:00:46]} 32. exf5 {[%clk 0:00:45]}  gxf5 {[%clk 0:00:44]} 33. Kc1 {[%clk 0:00:38]}  e4 {[%clk 0:00:35]} 34. Kd2 {[%clk 0:00:37]}  Nd7 {[%clk 0:00:33]} 35. Ke3 {[%clk 0:00:31]}  Ne5 {[%clk 0:00:27]} 36. Be2 {[%clk 0:00:28]}  Rh8 {[%clk 0:00:17]} 37. Rxa3 {[%clk 0:00:22]}  Rxa3 {[%clk 0:00:15]} 38. Rxa3 {[%clk 0:00:22]}  hxg3 {[%clk 0:00:15]} 39. fxg3 {[%clk 0:00:22]}  Rxh3 {[%clk 0:00:16]} 40. Kf2 {[%clk 0:00:22]}  Rh2+ {[%clk 0:00:12]} 41. Ke1 {[%clk 0:00:22]}  f4 {[%clk 0:00:10]} 42. gxf4+ {[%clk 0:00:22]}  Kxf4 {[%clk 0:00:11]} 43. Ra8 {[%clk 0:00:18]}  Ke3 {[%clk 0:00:10]} 44. Rf8 {[%clk 0:00:17]}  Rxe2+ {[%clk 0:00:06]} 45. Kd1 {[%clk 0:00:16]}  Rxa2 {[%clk 0:00:07]} 0-1


[Site "https://www.chess.com"]

[Event "Titled Tuesday Blitz August 3 2021"]
[White "Ambartsumova, Karina"]
[Black "Alavi, Sayed Javad"]
[WhiteFideId "4166299"]
[BlackFideId "12500607"]
[WhiteElo "2262"]
[BlackElo "2495"]
[Result "0-1"]
[Round "08"]
[TimeControl "180+1"]
[Date "2021.08.03"]
[WhiteClock "0:00:06"]
[BlackClock "0:00:05"]

1. c4 {[%clk 0:03:00]}  e6 {[%clk 0:02:58]} 2. Nc3 {[%clk 0:02:58]}  d5 {[%clk 0:02:59]} 3. e3 {[%clk 0:02:59]}  a6 {[%clk 0:02:56]} 4. Nf3 {[%clk 0:02:59]}  Nf6 {[%clk 0:02:56]} 5. b3 {[%clk 0:02:55]}  Be7 {[%clk 0:02:53]} 6. Bb2 {[%clk 0:02:55]}  O-O {[%clk 0:02:53]} 7. Be2 {[%clk 0:02:51]}  dxc4 {[%clk 0:02:49]} 8. bxc4 {[%clk 0:02:44]}  c5 {[%clk 0:02:49]} 9. d4 {[%clk 0:02:34]}  cxd4 {[%clk 0:02:37]} 10. exd4 {[%clk 0:02:32]}  b6 {[%clk 0:02:37]} 11. O-O {[%clk 0:02:29]}  Bb7 {[%clk 0:02:37]} 12. Qb3 {[%clk 0:02:21]}  Nc6 {[%clk 0:02:36]} 13. Rad1 {[%clk 0:02:17]}  Na5 {[%clk 0:02:35]} 14. Qa4 {[%clk 0:02:10]}  Bc6 {[%clk 0:02:26]} 15. Qc2 {[%clk 0:02:10]}  Bxf3 {[%clk 0:02:26]} 16. Bxf3 {[%clk 0:01:51]}  Nxc4 {[%clk 0:02:26]} 17. Bxa8 {[%clk 0:01:50]}  Qxa8 {[%clk 0:02:27]} 18. Qe2 {[%clk 0:01:22]}  b5 {[%clk 0:02:17]} 19. Bc1 {[%clk 0:00:56]}  Bb4 {[%clk 0:02:07]} 20. Rd3 {[%clk 0:00:53]}  Bxc3 {[%clk 0:01:41]} 21. Rxc3 {[%clk 0:00:53]}  Qd5 {[%clk 0:01:41]} 22. Rd1 {[%clk 0:00:48]}  h6 {[%clk 0:01:37]} 23. Rg3 {[%clk 0:00:46]}  Kh8 {[%clk 0:01:30]} 24. Rgd3 {[%clk 0:00:30]}  Rd8 {[%clk 0:01:23]} 25. h3 {[%clk 0:00:31]}  Rc8 {[%clk 0:01:01]} 26. Bf4 {[%clk 0:00:31]}  Rc6 {[%clk 0:00:58]} 27. Be5 {[%clk 0:00:31]}  Ne8 {[%clk 0:00:50]} 28. Qh5 {[%clk 0:00:26]}  Kg8 {[%clk 0:00:43]} 29. Rg3 {[%clk 0:00:22]}  Rc8 {[%clk 0:00:36]} 30. Qe2 {[%clk 0:00:12]}  Ncd6 {[%clk 0:00:32]} 31. Qg4 {[%clk 0:00:04]}  Nf5 {[%clk 0:00:30]} 32. Rgd3 {[%clk 0:00:04]}  Rc2 {[%clk 0:00:27]} 33. h4 {[%clk 0:00:03]}  b4 {[%clk 0:00:18]} 34. a3 {[%clk 0:00:03]}  b3 {[%clk 0:00:18]} 35. Rb1 {[%clk 0:00:02]}  b2 {[%clk 0:00:17]} 36. Qd1 {[%clk 0:00:03]}  Qc4 {[%clk 0:00:17]} 37. d5 {[%clk 0:00:01]}  Rc1 {[%clk 0:00:17]} 38. Bxb2 {[%clk 0:00:01]}  Rxd1+ {[%clk 0:00:15]} 39. Rbxd1 {[%clk 0:00:02]}  exd5 {[%clk 0:00:13]} 40. Rxd5 {[%clk 0:00:03]}  Ned6 {[%clk 0:00:13]} 41. Rxd6 {[%clk 0:00:03]}  Nxd6 {[%clk 0:00:14]} 42. Rxd6 {[%clk 0:00:04]}  Qxh4 {[%clk 0:00:11]} 43. Rxa6 {[%clk 0:00:02]}  Qe4 {[%clk 0:00:11]} 44. Bc3 {[%clk 0:00:01]}  Qc4 {[%clk 0:00:09]} 45. Ra8+ {[%clk 0:00:01]}  Kh7 {[%clk 0:00:10]} 46. Bb4 {[%clk 0:00:02]}  Qc1+ {[%clk 0:00:09]} 47. Kh2 {[%clk 0:00:02]}  Qf4+ {[%clk 0:00:09]} 48. Kg1 {[%clk 0:00:02]}  h5 {[%clk 0:00:09]} 49. Ra5 {[%clk 0:00:03]}  h4 {[%clk 0:00:08]} 50. Rc5 {[%clk 0:00:04]}  Qg4 {[%clk 0:00:07]} 51. Rc3 {[%clk 0:00:04]}  Qd1+ {[%clk 0:00:06]} 52. Kh2 {[%clk 0:00:04]}  Qg4 {[%clk 0:00:06]} 53. Kg1 {[%clk 0:00:05]}  Qf4 {[%clk 0:00:06]} 54. Kf1 {[%clk 0:00:05]}  g5 {[%clk 0:00:05]} 55. Kg1 {[%clk 0:00:06]}  Kg6 {[%clk 0:00:04]} 56. Re3 {[%clk 0:00:07]}  g4 {[%clk 0:00:03]} 57. Rc3 {[%clk 0:00:07]}  f5 {[%clk 0:00:04]} 58. Rc6+ {[%clk 0:00:07]}  Kf7 {[%clk 0:00:04]} 59. Rc3 {[%clk 0:00:06]}  Ke6 {[%clk 0:00:05]} 60. Re3+ {[%clk 0:00:06]}  Kd5 {[%clk 0:00:05]} 61. Rd3+ {[%clk 0:00:06]}  Kc4 {[%clk 0:00:05]} 62. Rc3+ {[%clk 0:00:07]}  Kb5 {[%clk 0:00:05]} 63. Re3 {[%clk 0:00:07]}  g3 {[%clk 0:00:04]} 64. fxg3 {[%clk 0:00:07]}  Qxe3+ {[%clk 0:00:04]} 65. Kh2 {[%clk 0:00:07]}  Qxg3+ {[%clk 0:00:04]} 66. Kg1 {[%clk 0:00:06]}  h3 {[%clk 0:00:05]} 0-1


[Site "https://www.chess.com"]

[Event "Titled Tuesday Blitz August 3 2021"]
[White "Batsuren, Dambasuren"]
[Black "Abdusattorov, Nodirbek"]
[WhiteFideId "4902920"]
[BlackFideId "14204118"]
[WhiteElo "2371"]
[BlackElo "2662"]
[Result "1-0"]
[Round "08"]
[TimeControl "180+1"]
[Date "2021.08.03"]
[WhiteClock "0:00:13"]
[BlackClock "0:00:03"]

1. d4 {[%clk 0:03:00]}  f5 {[%clk 0:03:00]} 2. g3 {[%clk 0:03:00]}  Nf6 {[%clk 0:03:00]} 3. Bg2 {[%clk 0:03:01]}  g6 {[%clk 0:03:01]} 4. c4 {[%clk 0:03:00]}  Bg7 {[%clk 0:03:01]} 5. Nf3 {[%clk 0:03:01]}  O-O {[%clk 0:03:01]} 6. O-O {[%clk 0:03:02]}  d6 {[%clk 0:03:02]} 7. Nc3 {[%clk 0:03:03]}  Nc6 {[%clk 0:03:02]} 8. d5 {[%clk 0:03:00]}  Na5 {[%clk 0:03:01]} 9. Qd3 {[%clk 0:02:42]}  e5 {[%clk 0:02:46]} 10. dxe6 {[%clk 0:02:43]}  Bxe6 {[%clk 0:02:46]} 11. b3 {[%clk 0:02:41]}  Kh8 {[%clk 0:02:33]} 12. Bb2 {[%clk 0:02:40]}  Nc6 {[%clk 0:02:32]} 13. Rfe1 {[%clk 0:02:38]}  Ne4 {[%clk 0:02:24]} 14. Qc2 {[%clk 0:02:31]}  Qf6 {[%clk 0:02:01]} 15. Na4 {[%clk 0:02:06]}  Qe7 {[%clk 0:01:57]} 16. Rad1 {[%clk 0:02:05]}  Rae8 {[%clk 0:01:55]} 17. Nd4 {[%clk 0:01:55]}  Bd7 {[%clk 0:01:39]} 18. Nb5 {[%clk 0:01:48]}  Nb4 {[%clk 0:01:16]} 19. Qb1 {[%clk 0:01:35]}  Nxf2 {[%clk 0:01:11]} 20. Bxg7+ {[%clk 0:01:31]}  Kxg7 {[%clk 0:01:11]} 21. Kxf2 {[%clk 0:01:07]}  Qe3+ {[%clk 0:01:11]} 22. Kf1 {[%clk 0:01:08]}  f4 {[%clk 0:01:11]} 23. g4 {[%clk 0:00:54]}  f3 {[%clk 0:01:03]} 24. Qb2+ {[%clk 0:00:54]}  Re5 {[%clk 0:01:03]} 25. exf3 {[%clk 0:00:52]}  Rxf3+ {[%clk 0:01:03]} 26. Bxf3 {[%clk 0:00:49]}  Qxf3+ {[%clk 0:01:04]} 27. Qf2 {[%clk 0:00:31]}  Qh1+ {[%clk 0:00:31]} 28. Qg1 {[%clk 0:00:31]}  Qf3+ {[%clk 0:00:32]} 29. Qf2 {[%clk 0:00:32]}  Qxg4 {[%clk 0:00:17]} 30. Rxe5 {[%clk 0:00:24]}  Qxd1+ {[%clk 0:00:17]} 31. Re1 {[%clk 0:00:25]}  Bh3+ {[%clk 0:00:03]} 32. Kg1 {[%clk 0:00:25]}  Qg4+ {[%clk 0:00:03]} 33. Qg3 {[%clk 0:00:24]}  Qf5 {[%clk 0:00:01]} 34. Nd4 {[%clk 0:00:22]}  Qf6 {[%clk 0:00:01]} 35. Qxh3 {[%clk 0:00:16]}  Qxd4+ {[%clk 0:00:01]} 36. Qe3 {[%clk 0:00:17]}  Qg4+ {[%clk 0:00:01]} 37. Kh1 {[%clk 0:00:17]}  Nc2 {[%clk 0:00:01]} 38. Qe7+ {[%clk 0:00:17]}  Kh6 {[%clk 0:00:02]} 39. Rf1 {[%clk 0:00:14]}  Nd4 {[%clk 0:00:02]} 40. Qe3+ {[%clk 0:00:13]}  g5 {[%clk 0:00:03]} 41. Nc3 {[%clk 0:00:12]}  Nf5 {[%clk 0:00:03]} 42. Qe6+ {[%clk 0:00:13]}  Kh5 {[%clk 0:00:03]} 43. Qxf5 {[%clk 0:00:13]} 1-0


[Site "https://www.chess.com"]

[Event "Titled Tuesday Blitz August 3 2021"]
[White "Bluebaum, Matthias"]
[Black "Indjic, Aleksandar"]
[WhiteFideId "24651516"]
[BlackFideId "911925"]
[WhiteElo "2685"]
[BlackElo "2643"]
[Result "1/2-1/2"]
[Round "08"]
[TimeControl "180+1"]
[Date "2021.08.03"]
[WhiteClock "0:00:05"]
[BlackClock "0:00:03"]

1. d4 {[%clk 0:03:00]}  Nf6 {[%clk 0:03:00]} 2. c4 {[%clk 0:03:01]}  e6 {[%clk 0:03:00]} 3. Nc3 {[%clk 0:03:01]}  d5 {[%clk 0:02:59]} 4. cxd5 {[%clk 0:03:02]}  exd5 {[%clk 0:02:59]} 5. Bg5 {[%clk 0:03:02]}  c6 {[%clk 0:02:58]} 6. e3 {[%clk 0:03:03]}  Be7 {[%clk 0:02:52]} 7. Bd3 {[%clk 0:03:02]}  O-O {[%clk 0:02:52]} 8. h3 {[%clk 0:03:03]}  Re8 {[%clk 0:02:51]} 9. Qc2 {[%clk 0:03:00]}  h6 {[%clk 0:02:49]} 10. Bf4 {[%clk 0:03:00]}  Nbd7 {[%clk 0:02:45]} 11. Nf3 {[%clk 0:02:58]}  Nf8 {[%clk 0:02:40]} 12. O-O {[%clk 0:02:58]}  Bd6 {[%clk 0:02:38]} 13. Ne5 {[%clk 0:02:56]}  Qe7 {[%clk 0:02:37]} 14. Bh2 {[%clk 0:02:55]}  c5 {[%clk 0:02:33]} 15. f4 {[%clk 0:02:48]}  c4 {[%clk 0:02:31]} 16. Be2 {[%clk 0:02:46]}  a6 {[%clk 0:02:31]} 17. Bf3 {[%clk 0:02:46]}  Qd8 {[%clk 0:02:19]} 18. g4 {[%clk 0:02:30]}  Rb8 {[%clk 0:02:13]} 19. Qg2 {[%clk 0:02:29]}  b5 {[%clk 0:01:57]} 20. Nxd5 {[%clk 0:02:27]}  Nxd5 {[%clk 0:01:56]} 21. Bxd5 {[%clk 0:02:27]}  Be6 {[%clk 0:01:42]} 22. Nc6 {[%clk 0:02:24]}  Bxd5 {[%clk 0:01:36]} 23. Qxd5 {[%clk 0:02:23]}  Qc7 {[%clk 0:01:33]} 24. Nxb8 {[%clk 0:02:22]}  Qxb8 {[%clk 0:01:34]} 25. Rae1 {[%clk 0:01:59]}  Rd8 {[%clk 0:01:34]} 26. Qg2 {[%clk 0:01:57]}  b4 {[%clk 0:01:33]} 27. f5 {[%clk 0:01:58]}  a5 {[%clk 0:01:28]} 28. Rc1 {[%clk 0:01:54]}  Rc8 {[%clk 0:01:27]} 29. e4 {[%clk 0:01:47]}  Qb6 {[%clk 0:01:22]} 30. Rfd1 {[%clk 0:01:43]}  Nd7 {[%clk 0:01:22]} 31. Kh1 {[%clk 0:01:41]}  Bxh2 {[%clk 0:01:20]} 32. Kxh2 {[%clk 0:01:42]}  f6 {[%clk 0:01:17]} 33. e5 {[%clk 0:01:40]}  Qb5 {[%clk 0:01:13]} 34. e6 {[%clk 0:01:38]}  Nb6 {[%clk 0:01:12]} 35. d5 {[%clk 0:01:39]}  c3 {[%clk 0:01:11]} 36. bxc3 {[%clk 0:01:38]}  bxc3 {[%clk 0:01:08]} 37. d6 {[%clk 0:01:38]}  Nc4 {[%clk 0:01:07]} 38. d7 {[%clk 0:01:36]}  Rd8 {[%clk 0:01:07]} 39. Qd5 {[%clk 0:01:16]}  Qb8+ {[%clk 0:01:05]} 40. Kh1 {[%clk 0:01:09]}  Ne3 {[%clk 0:01:06]} 41. Qe4 {[%clk 0:00:57]}  Qg3 {[%clk 0:01:03]} 42. Rc2 {[%clk 0:00:37]}  Nxc2 {[%clk 0:00:38]} 43. e7 {[%clk 0:00:25]}  Qxh3+ {[%clk 0:00:38]} 44. Kg1 {[%clk 0:00:19]}  Qg3+ {[%clk 0:00:38]} 45. Kf1 {[%clk 0:00:19]}  Qh3+ {[%clk 0:00:35]} 46. Kf2 {[%clk 0:00:13]}  Qh2+ {[%clk 0:00:28]} 47. Kf1 {[%clk 0:00:13]}  Qh3+ {[%clk 0:00:25]} 48. Ke2 {[%clk 0:00:08]}  Qh2+ {[%clk 0:00:19]} 49. Kd3 {[%clk 0:00:09]}  Rxd7+ {[%clk 0:00:17]} 50. Kc4 {[%clk 0:00:09]}  Na3+ {[%clk 0:00:15]} 51. Kb3 {[%clk 0:00:05]}  Qb2+ {[%clk 0:00:07]} 52. Ka4 {[%clk 0:00:05]}  Qb5+ {[%clk 0:00:06]} 53. Kxa3 {[%clk 0:00:05]}  Qc5+ {[%clk 0:00:07]} 54. Kb3 {[%clk 0:00:04]}  Rxe7 {[%clk 0:00:07]} 55. Rd8+ {[%clk 0:00:03]}  Kh7 {[%clk 0:00:07]} 56. Qa8 {[%clk 0:00:01]}  Qb4+ {[%clk 0:00:07]} 57. Kc2 {[%clk 0:00:02]}  Qb2+ {[%clk 0:00:06]} 58. Kd3 {[%clk 0:00:02]}  Qd2+ {[%clk 0:00:06]} 59. Kc4 {[%clk 0:00:03]}  Qe2+ {[%clk 0:00:07]} 60. Kb3 {[%clk 0:00:02]}  Qb2+ {[%clk 0:00:06]} 61. Kc4 {[%clk 0:00:03]}  Qxa2+ {[%clk 0:00:07]} 62. Kc5 {[%clk 0:00:03]}  Qa3+ {[%clk 0:00:06]} 63. Kb6 {[%clk 0:00:02]}  Qb4+ {[%clk 0:00:06]} 64. Ka6 {[%clk 0:00:03]}  Qc4+ {[%clk 0:00:05]} 65. Kb6 {[%clk 0:00:03]}  Qb4+ {[%clk 0:00:06]} 66. Ka6 {[%clk 0:00:04]}  Qc4+ {[%clk 0:00:04]} 67. Kb6 {[%clk 0:00:05]}  Qc7+ {[%clk 0:00:05]} 68. Ka6 {[%clk 0:00:05]}  Qc4+ {[%clk 0:00:03]} 1/2-1/2


[Site "https://www.chess.com"]

[Event "Titled Tuesday Blitz August 3 2021"]
[White "Chen, Max"]
[Black "Potapova, Margarita"]
[WhiteFideId "2622440"]
[BlackFideId "14126869"]
[WhiteElo "2452"]
[BlackElo "2229"]
[Result "0-1"]
[Round "08"]
[TimeControl "180+1"]
[Date "2021.08.03"]
[WhiteClock "0:00:02"]
[BlackClock "0:00:08"]

1. e4 {[%clk 0:03:00]}  c5 {[%clk 0:02:59]} 2. Nf3 {[%clk 0:03:00]}  d6 {[%clk 0:03:00]} 3. d4 {[%clk 0:02:58]}  cxd4 {[%clk 0:03:01]} 4. Nxd4 {[%clk 0:02:59]}  Nf6 {[%clk 0:03:02]} 5. Nc3 {[%clk 0:02:53]}  a6 {[%clk 0:03:02]} 6. Be3 {[%clk 0:02:53]}  e5 {[%clk 0:03:02]} 7. Nb3 {[%clk 0:02:52]}  Be6 {[%clk 0:03:02]} 8. f3 {[%clk 0:02:49]}  Be7 {[%clk 0:03:03]} 9. Be2 {[%clk 0:02:27]}  O-O {[%clk 0:03:03]} 10. O-O {[%clk 0:02:26]}  b5 {[%clk 0:02:57]} 11. a4 {[%clk 0:02:21]}  b4 {[%clk 0:02:56]} 12. Nd5 {[%clk 0:02:19]}  Bxd5 {[%clk 0:02:54]} 13. exd5 {[%clk 0:02:20]}  a5 {[%clk 0:02:53]} 14. Qd3 {[%clk 0:02:16]}  Nbd7 {[%clk 0:02:52]} 15. Rad1 {[%clk 0:02:10]}  Nb6 {[%clk 0:02:52]} 16. Qb5 {[%clk 0:02:09]}  Nbd7 {[%clk 0:02:29]} 17. f4 {[%clk 0:01:47]}  Ne8 {[%clk 0:02:14]} 18. fxe5 {[%clk 0:01:29]}  dxe5 {[%clk 0:02:13]} 19. Nc5 {[%clk 0:01:11]}  Nxc5 {[%clk 0:02:10]} 20. Bxc5 {[%clk 0:01:10]}  Bxc5+ {[%clk 0:02:03]} 21. Qxc5 {[%clk 0:01:09]}  Nd6 {[%clk 0:02:04]} 22. Qe3 {[%clk 0:01:07]}  Qe7 {[%clk 0:01:59]} 23. c4 {[%clk 0:01:06]}  bxc3 {[%clk 0:01:54]} 24. bxc3 {[%clk 0:01:05]}  Rac8 {[%clk 0:01:54]} 25. Rc1 {[%clk 0:00:59]}  Nc4 {[%clk 0:01:39]} 26. Qh3 {[%clk 0:00:40]}  Qc5+ {[%clk 0:01:36]} 27. Kh1 {[%clk 0:00:39]}  Qxd5 {[%clk 0:01:34]} 28. Rfd1 {[%clk 0:00:34]}  Qc6 {[%clk 0:01:22]} 29. Bg4 {[%clk 0:00:18]}  Rcd8 {[%clk 0:01:16]} 30. Bd7 {[%clk 0:00:13]}  Qc5 {[%clk 0:00:53]} 31. Bb5 {[%clk 0:00:12]}  Nb6 {[%clk 0:00:41]} 32. Re1 {[%clk 0:00:07]}  Rd2 {[%clk 0:00:39]} 33. Qe3 {[%clk 0:00:06]}  Qd5 {[%clk 0:00:35]} 34. Qe4 {[%clk 0:00:03]}  Qxe4 {[%clk 0:00:24]} 35. Rxe4 {[%clk 0:00:03]}  f6 {[%clk 0:00:25]} 36. c4 {[%clk 0:00:03]}  Rc8 {[%clk 0:00:24]} 37. h3 {[%clk 0:00:02]}  Rc5 {[%clk 0:00:23]} 38. Kh2 {[%clk 0:00:01]}  Kf7 {[%clk 0:00:24]} 39. Kg3 {[%clk 0:00:02]}  f5 {[%clk 0:00:24]} 40. Ree1 {[%clk 0:00:02]}  Kf6 {[%clk 0:00:23]} 41. Kf3 {[%clk 0:00:03]}  Rd3+ {[%clk 0:00:22]} 42. Ke2 {[%clk 0:00:03]}  e4 {[%clk 0:00:22]} 43. g4 {[%clk 0:00:03]}  f4 {[%clk 0:00:21]} 44. Rf1 {[%clk 0:00:03]}  Ke5 {[%clk 0:00:20]} 45. Rce1 {[%clk 0:00:03]}  Nxc4 {[%clk 0:00:20]} 46. Rc1 {[%clk 0:00:03]}  Rd4 {[%clk 0:00:19]} 47. Rc3 {[%clk 0:00:02]}  f3+ {[%clk 0:00:16]} 48. Kf2 {[%clk 0:00:02]}  Kf4 {[%clk 0:00:14]} 49. Re1 {[%clk 0:00:02]}  Rd2+ {[%clk 0:00:13]} 50. Kg1 {[%clk 0:00:02]}  Kg3 {[%clk 0:00:11]} 51. Kf1 {[%clk 0:00:02]}  Rd4 {[%clk 0:00:08]} 52. Ree3 {[%clk 0:00:02]}  Nd2+ {[%clk 0:00:08]} 0-1


[Site "https://www.chess.com"]